Cogmind - Beta 13 @@@ ROGUE MODE // 2024.04.17 @ 18:03:57 Player: monkeman Result: Destroyed self with Subdweller Shrapnel Launcher Performance ------------- Evolutions (0) 0 Regions Visited (2) 400 Robots Destroyed (26) 130 Value Destroyed (683) 683 Prototype IDs (0) 0 Alien Tech Used (0) 0 Bonus (0) 0 TOTAL SCORE: 1213 Bonus ------- None Cogmind --------- Core Integrity 0/250 Matter 188/300 Energy 99/100 System Corruption 0% Temperature Cool (6) Movement Treading (240) Ox1 Location -10/Subcaves Parts ------- > --- POWER (1) -------- Subdweller Power Source > --- PROPULSION (2) --- Improved Treads Improved Treads > --- UTILITY (2) ------ High-capacity Storage Unit Medium Armor Plating > --- WEAPON (2) ------- Barrage Gun Subdweller Shrapnel Launcher > --- INVENTORY (20) --- Spiked Treads Subdweller Monowheel Huge Storage Unit Subdweller Optics Sensor Array Signal Interpreter Power Shielding Makeshift Light Armor Plating Makeshift Kinetic Plating High-powered Tractor Beam Riot Gun Subdweller Laser Light Assault Rifle Light Assault Rifle Light Assault Rifle Battle Rifle Grenade Launcher Grenade Launcher Shrapnel Trap Peak State ------------ > --- POWER ------------ Subdweller Power Source > --- PROPULSION ------- Improved Treads Improved Treads > --- UTILITY ---------- High-capacity Storage Unit Medium Armor Plating > --- WEAPON ----------- Riot Gun Barrage Gun > --- INVENTORY -------- Spiked Treads Subdweller Monowheel Huge Storage Unit Subdweller Optics Sensor Array Signal Interpreter Power Shielding Makeshift Light Armor Plating Makeshift Kinetic Plating High-powered Tractor Beam Subdweller Laser Light Assault Rifle Light Assault Rifle Light Assault Rifle Battle Rifle Grenade Launcher Grenade Launcher Subdweller Shrapnel Launcher Shrapnel Trap Scrap Shield Fragment [Rating: 18] Favorites ----------- Power Subdweller Power Source Engine Subdweller Power Source Propulsion Improved Treads Treads Improved Treads Utility Medium Armor Plating Device Structural Scanner Storage High-capacity Storage Unit Protection Medium Armor Plating Weapon Assault Rifle Energy Gun Riot Gun Ballistic Gun Assault Rifle Launcher Grenade Launcher Build | -11 -10 -10 ------- Run | Yrd Mat Sub Slots Evolved . | . . . Power . | . . . Propulsion . | . . . Utility . | . . . Weapon . | . . . Parts Attached 32 | 6 12 14 Power 5 | 1 1 3 Engine 5 | 1 1 3 Core . | . . . Reactor . | . . . Propulsion 6 | 2 2 2 Treads 6 | 2 2 2 Leg . | . . . Wheel . | . . . Hover . | . . . Flight . | . . . Utility 6 | 1 4 1 Device 1 | . 1 . Storage 2 | 1 1 . Processor . | . . . Hackware . | . . . Protection 3 | . 2 1 Artifact . | . . . Weapon 15 | 2 5 8 Energy Gun 2 | . . 2 Energy Cannon . | . . . Ballistic Gun 10 | 2 4 4 Ballistic Cannon . | . . . Launcher 3 | . 1 2 Special Weapon . | . . . Impact Weapon . | . . . Slashing Weapon . | . . . Piercing Weapon . | . . . Special Melee Weapon . | . . . Unidentified Prototypes . | . . . Parts Lost 10 | . 4 6 Power 2 | . 1 1 Propulsion 2 | . . 2 Utility 2 | . 1 1 Weapon 4 | . 2 2 Highest Loss Streak 3 | . 3 3 To Critical Strikes . | . . . Average Slot Usage (%) 97 | . 96 97 Engine 11 | . 11 11 Treads 27 | . 28 27 Storage 14 | . 14 14 Protection 13 | . 10 13 Energy Gun 8 | . . 10 Ballistic Gun 18 | . 23 16 Launcher 1 | . 4 . Naked Turns . | . . . Heaviest Build 63 | 14 55 63 Greatest Support 46 | 40 46 46 Greatest Overweight (x) 1 | . 1 1 Average Overweight (x) . | . . 1 Largest Inventory Capacity 20 | 8 20 20 Average Capacity 18 | 7 14 20 Most Carried 20 | 6 16 20 Average Carried 16 | 3 10 18 Final Capacity 20 | 8 20 20 Final Carried 19 | 6 16 19 Class Distribution -------------------- 100% | Mutant Dominant Class ---------------- Mutant | -10/Materials Mutant | -10/Subcaves Resources | -11 -10 -10 ----------- Run | Yrd Mat Sub Matter Collected 1148 | 235 498 415 Remotely . | . . . Salvage Created 972 | . 719 253 Parts 56 | . 41 15 Haulers Intercepted 2 | . 2 . Recyclers Shooed . | . . . Parts Field Recycled . | . . . Retrieved Matter . | . . . Parts Self-Destructed 7 | . . 7 Prevented . | . . . Kills | -11 -10 -10 ------- Run | Yrd Mat Sub Combat Hostiles Destroyed 19 | . 13 6 Guns 18 | . 12 6 AOE 1 | . 1 . Classes Destroyed 7 | . 6 1 Builder 1 | . 1 . Hauler 2 | . 2 . Recycler 2 | . 2 . Watcher 2 | . 2 . Swarmer 3 | . 3 . Grunt 11 | . 10 1 Subdweller 5 | . . 5 Best Kill Streak 10 | . 10 2 Combat Bots Only 3 | . 3 2 Max Kills in Single Turn 1 | . 1 1 Gunslinging . | . . . Exploded 1 | . 1 . Melee . | . . . Uniques/NPCs Destroyed . | . . . Combat | -11 -10 -10 -------- Run | Yrd Mat Sub Hostile Shots Fired 184 | . 121 63 Missed 48 | . 32 16 Damage Taken 2045 | . 1075 970 Core 289 | . 157 132 Absorbed by Shields . | . . . Core Remaining (%) 100 | 100 . . Volleys Fired 150 | . 70 80 Largest 2 | . 2 2 Hottest 78 | . 50 78 Shots Fired 253 | . 133 120 Gun 247 | . 131 116 Cannon . | . . . Launcher 6 | . 2 4 Special . | . . . Kinetic 242 | . 131 111 Thermal . | . . . Explosive 2 | . 2 . Electromagnetic 9 | . . 9 Robot Hit Streak 14 | . 14 10 Robot Miss Streak 3 | . 3 3 Penetration Max . | . . . Secondary Targets 2 | . 2 . Max Gunslinging Chain 1 | . 1 . Shots Hit Robots 146 | . 93 53 Core Hits 53 | . 37 16 Critical Kills . | . . . Critical Parts Destroyed . | . . . Critical Strikes . | . . . Melee Attacks . | . . . Impact . | . . . Slashing . | . . . Piercing . | . . . Sneak Attacks . | . . . Combat Hostiles . | . . . Follow-up Attacks . | . . . Damage Inflicted 1984 | . 1316 668 Guns 1822 | . 1154 668 Cannons . | . . . Explosions 142 | . 142 . Melee . | . . . Ramming 20 | . 20 . Kinetic 1761 | . 1154 607 Thermal . | . . . Explosive 142 | . 142 . Electromagnetic 61 | . . 61 Impact . | . . . Slashing . | . . . Piercing . | . . . Highest Corruption . | . . . Average Corruption . | . . . Corruption Purged . | . . . Corruption Blocked . | . . . Overload Shots . | . . . Overflow Damage . | . . . Projectiles . | . . . Explosions . | . . . Melee . | . . . Knockbacks . | . . . Impact . | . . . Kinetic . | . . . Secondary . | . . . Self-Inflicted Damage 140 | . 47 93 Shots 5 | . 2 3 Rammed 4 | . 4 . Targets Rammed 4 | . 4 . Kicked . | . . . Crushed . | . . . Highest Temperature 18 | . 18 . Average Temperature 7 | . 7 . Received Heat Transfer 846 | . 543 303 Siege Activations . | . . . Robots Corrupted . | . . . Combat Hostiles . | . . . Parts Fried . | . . . Impact Corruptions . | . . . Robots Melted . | . . . Combat Hostiles . | . . . Parts Melted . | . . . Heat Transferred . | . . . Parts Sabotaged . | . . . Parts Stolen . | . . . Parts Stripped . | . . . Power Chain Reactions . | . . . Alert | -11 -10 -10 ------- Run | Yrd Mat Sub Peak Influence 257 | . 257 . Initial . | . . . Average 87 | . 92 . Maximum Alert Level 1 | . 1 . Low Security (%) 85 | 100 84 . Level 1 14 | . 15 . Level 2 . | . . . Level 3 . | . . . Level 4 . | . . . Level 5 . | . . . High Security . | . . . Max Security . | . . . Squads Dispatched 3 | . 3 . Investigation 2 | . 2 . Extermination . | . . . Reinforcement 1 | . 1 . Assault . | . . . Garrison . | . . . Intercept . | . . . Searches Triggered . | . . . Construction Impeded . | . . . Haulers Reinforced . | . . . Active Scanning Responses . | . . . Cargo Convoy Interrupts . | . . . Stealth | -11 -10 -10 --------- Run | Yrd Mat Sub Distress Signals 2 | . 2 . Communications Jammed . | . . . Distress Signals . | . . . Times Spotted 37 | . 29 8 Peak Tracking Total 5 | . 5 2 Tactical Retreats 1 | . 1 . Traps | -11 -10 -10 ------- Run | Yrd Mat Sub Traps Triggered 2 | . 2 . Indirectly . | . . . Trap Hack Attempts . | . . . Triggered . | . . . Disarmed . | . . . Reprogrammed . | . . . Reused . | . . . Traps Extracted . | . . . Installed . | . . . Triggered . | . . . Most Traps Carried 1 | . . 1 Machines | -11 -10 -10 ---------- Run | Yrd Mat Sub Machines Disabled . | . . . Max in Single Turn . | . . . Machines Repaired . | . . . Machines Dismantled . | . . . Machines Sabotaged . | . . . Overloaded Fab Kills . | . . . Hacking | -11 -10 -10 --------- Run | Yrd Mat Sub Machines Accessed 7 | . 6 1 Terminals 5 | . 5 . Fabricators . | . . . Repair Stations . | . . . Recycling Units 1 | . 1 . Scanalyzers . | . . . Garrison Access . | . . . Total Hacks 18 | . 15 3 Successful 11 | . 8 3 Failed 6 | . 6 . Catastrophic . | . . . Database Lockouts 1 | . 1 . Manual 8 | . 8 . Terminals 14 | . 14 . Fabricators . | . . . Repair Stations . | . . . Recycling Units 1 | . 1 . Scanalyzers . | . . . Garrison Access . | . . . Terminal Hacks 8 | . 5 3 Record 3 | . . 3 Robot Analysis 2 | . 2 . Locate Traps 2 | . 2 . Hauler Manifests 1 | . 1 . Fabricator Hacks . | . . . Repair Station Hacks . | . . . Recycling Unit Hacks 1 | . 1 . Report Inventory 1 | . 1 . Scanalyzer . | . . . Garrison Access Hacks . | . . . Unauthorized Hacks 2 | . 2 . Terminals 2 | . 2 . Botnet 2 | . 2 . Fabricators . | . . . Repair Stations . | . . . Recycling Units . | . . . Scanalyzers . | . . . Garrison Access . | . . . Data Cores Recovered . | . . . Used . | . . . Hacking Detections 4 | . 4 . Full Trace Events . | . . . Feedback Events . | . . . Feedback Blocked . | . . . Robot Schematics Acquired . | . . . Robots Built . | . . . Authchips . | . . . Time . | . . . Total Robot Build Rating . | . . . Part Schematics Acquired . | . . . Parts Built . | . . . Authchips . | . . . Time . | . . . Total Part Build Rating . | . . . Parts Repaired . | . . . Time . | . . . Parts Recycled . | . . . Recycled Matter . | . . . Retrieved Matter . | . . . Retrieved Components . | . . . Parts Scanalyzed . | . . . Part Schematics Acquired . | . . . Parts Damaged . | . . . Bothacking | -11 -10 -10 ------------ Run | Yrd Mat Sub Used RIF Installer . | . . . Robots Hacked . | . . . Non-combat . | . . . Combat . | . . . Robot Hacks Applied . | . . . Relay Couplers Released . | . . . Fabnet Peak Effective % . | . . . Robots Rewired . | . . . Allies Hacked . | . . . Hacks Repelled . | . . . Allies | -11 -10 -10 -------- Run | Yrd Mat Sub Total Allies . | . . . Largest Group . | . . . Highest-Rated Group . | . . . Highest-Rated Ally . | . . . Total Orders . | . . . Ally Attacks . | . . . Total Damage . | . . . Kills . | . . . Allies Corrupted . | . . . Allies Melted . | . . . Intel | -11 -10 -10 ------- Run | Yrd Mat Sub Robot Analysis Total 2 | . 2 . Derelict Logs Recovered 2 | . . 2 Drone Launches . | . . . Drone Recoveries . | . . . Exploration | -11 -10 -10 ------------- Run | Yrd Mat Sub Turns Passed 7108 | 88 1723 5297 Spaces Moved 2879 | 49 720 2110 Core 4 | 4 . . Treads 2875 | 45 720 2110 Legs . | . . . Wheels . | . . . Hover . | . . . Flight . | . . . Fastest Speed 50 | 50 160 240 Average Speed 228 | 151 200 240 Slowest Speed 240 | 160 240 240 Overloaded Moves . | . . . Propulsion Burnouts . | . . . Robots Hopped . | . . . Cave-ins Triggered . | . . . Exploration Rate (%) 44 | 4 94 35 Regions Visited 2 Branch Regions 1 Pre-discovered Areas 1 | . . 1 Known Exits Taken . | . . . Unknown Exits Taken 2 | 1 1 . Scrap Searched 9 | . . 9 Spaces Dug 9 | . . 9 Terrain Destroyed 53 | . 11 42 Melee . | . . . Projectile . | . . . AOE 53 | . 11 42 Terrain Rammed . | . . . Walls Destroyed . | . . . Machines Disabled . | . . . Actions | -11 -10 -10 --------- Run | Yrd Mat Sub Total 3161 | 60 867 2234 Wait 38 | . 28 10 Move 2877 | 48 719 2110 Hop . | . . . Pick Up 40 | 6 21 13 Fast Attach 11 | 6 3 2 Attach 8 | . 3 5 Detach . | . . . Swap 13 | . 6 7 Drop 20 | . 13 7 Fire 150 | . 70 80 Melee . | . . . Ram . | . . . Kick . | . . . Crush 4 | . 4 . Escape Stasis . | . . . Rewire . | . . . Trap . | . . . Miscellaneous . | . . . Route ------- -11/Scrapyard -10/Materials (discovered 5 exits: [*Mat x2] / [*Min x2] / *Sub) -10/Subcaves History --------- Turn | Location | Event 17 | -11/Scrapyard | Discovered new exit (range 15) 89 | -11/Scrapyard | Entered Materials 315 | -10/Materials | Build established: Mutant 573 | -10/Materials | Discovered new exit (range 5) 707 | -10/Materials | Discovered new exit (range 8) 797 | -10/Materials | Core integrity fell below 50% 825 | -10/Materials | Lost 3 parts (1p1u1w) 841 | -10/Materials | Discovered new exit (range 3) 892 | -10/Materials | Central database locked down 1134 | -10/Materials | Discovered new exit (range 7) 1795 | -10/Materials | Discovered new exit (range 7) 1812 | -10/Materials | Entered Subcaves 1815 | -10/Subcaves | Learned 4 Materials zone layouts 2328 | -10/Subcaves | Lost 3 parts (1p1u1w) 2605 | -10/Subcaves | Visited Clippyterm 2612 | -10/Subcaves | Learned Factory fabricator intel 2871 | -10/Subcaves | Core integrity fell below 20% 3203 | -10/Subcaves | Disturbed a concealed Subdweller 3550 | -10/Subcaves | Shifting Twisted Machinery released Mak. System Restoration Module 3559 | -10/Subcaves | Shifting Twisted Machinery released Barrage Gun 3617 | -10/Subcaves | A swath of the cavern ceiling suddenly collapsed 4148 | -10/Subcaves | Ambushed by Subdweller buried in earth 7109 | -10/Subcaves | Destroyed self with Subdweller Shrapnel Launcher Last Messages --------------- 04245_ Acquired 6 matter. 04264_ Acquired 11 matter. 04299_ Subatomizers dissect the Corrupted Sub. Monowheel. 04300_ Acquired 22 matter. 04302_ Acquired 43 matter. 04305_ Dropped Scrap Shield Fragment. 04488_ Subatomizers dissect the Sml. Storage Unit. 04619_ Sub. Power Source shoots sparks and powers down. 04646_ SP-S30(u) builds Twisted Machinery. 04957_ SP-S30(u) tweaks Twisted Machinery. 05203_ Acquired 18 matter. 05783_ Acquired 6 matter. 05826_ SP-S30(u) tweaks Twisted Machinery. 06645_ KU-MEY(u) tweaks Twisted Machinery. 06685_ KU-MEY(u) builds Twisted Machinery. 06765_ Acquired 10 matter. 07108_ DT-CAC(R): "MADSUB!" Map ----- +----------------------------------------------------+ | ?????????????????????????????????????????????????? | | ?????????????????????????????????????????????????? | | ?????????????????????????????????????????????????? | | ?????????????????????????????????????????????????? | | ?????????????????????????????????????????????????? | | ?????????????????????????????????????????????????? | | ?????????????????????????????????????????????????? | | ?????????????????????????????????????????????????? | | ?????????????????????????????????????????????????? | | ?????????????????????????????????????????????????? | | ??????????????????????? ????????????????????????? | | ?????????????????????## ????????????????????????? | | ??????????????????? #???????????????????????? | | ??????????????????? % ##?????????????????????? | | ???????????????????? #?????????????????????? | | ???????????????????? % #?????????????????????? | | ????????????????????? ##??????# ???????????? | | ????????????????????? R #????? ???????????? | | ?????????????????????? ##### ???????????? | | ?????????????????????? ????????????? | | ??????????????????????? #?????????????? | | ??????????????????????? #??????????????? | | ???????????????????????#; #??????????????? | | ???????????????????????#; #??????????????? | | ???????????????????????#; #??????????????? | | ???????????????????????# @ %] #???????????????? | | ?????????????????????### #???????????????? | | ?????????????????????#;;#;## ##???????????????? | | ??????????????????#### ##?? #????????????????? | | ##????????????????# ; ##???? #????????????????? | | ##???????????????#;;; "##?????#????????????????? | | ##??????????????#;; ##?????????????????????? | | """####???????????# "#?????????????????????? | | "##?###??????# ###???????????????????? | | ### ######### ""#???????????????????? | | ### " ##"#""# ###???????????????????? | | ## !" ##""""" "#?????????????????????? | | ### ## ##""" #####?????????????????????? | | #### ## #"#######"#"#?????????????????????? | | ## ###?????#"#"#?####????????????????? | | ### "####??#""#### ##?###???????????? | | #### ####"#"## ### ##??????????? | | ## ##?# ##"#### ##?????????? | | ## #??# " ## ##????????? | | ### ##?## ## #????????? | | ?# #??# ### ## ##????????? | | ?# ##?## #####?# #### ##????????? | | ?# ### ##????######??# ### #????????? | | ?## ### #????????????## #?## #????????? | | ??# ## # #????????###########??#######????????? | +----------------------------------------------------+ Best States ------------- Heat Dissipation 25 Energy Generation 15 Energy Capacity 250 Matter Stores 300 Matter Capacity 300 Sight Range 16 Terrain Scan Density 10 Armor Coverage 225 Evasion (%) 40 Recoil Reduction 2 Item Schematics ----------------- None Robot Schematics ------------------ None Fabricated ------------ Nothing Alien Tech Used ----------------- None Achievements -------------- None Challenges ------------ None Game ------ Seed DrainedProtonBoomstick Manual? 0 Play Time 00:23:21 Cumulative 32.4 hours Start 2024.04.17 @ 17:39:44 End 2024.04.17 @ 18:03:57 Sessions 1 Manual Loads 0 Difficulty Rogue Special Mode None Game No. 40 Rogue 40 Adventurer 0 Explorer 0 Win Type - Total 1 Types 1/0/0/0/0/0/0/0/0 Lore% 19 Gallery% 36 Achievement% 26 Wizard Run 0 Options --------- Layout 1 ASCII 0 Keyboard 0 Movement Mouse Keybinds 0 Fullscreen 1 Font 24/Smallcaps Map View 50x35 Zoom Use 0% Tactical HUD 1 Map Filters NONE Filters NONE Steam 1 RUN: acd6ff86-ff65-40ea-ab23-00e4b84756b8